{"text_format":"1","workbook":"xlsx","n_sheets":10,"sheets":["Vollmacht","Beiblatt","Vollmacht Partner","Beiblatt Partner","Attribute","Kommentare","Drucken","Kanzleidaten","Eintragung","Stammdaten"],"not_rendered":{"charts":0,"images":2,"macros":1,"external_links":0,"defined_names":162,"comments":2,"pivot_tables":0},"unopened":[],"bounds":{"document_bytes":16777216,"sheet_cells":100000,"rows_first":2000,"rows_last":500,"rows_between":2000,"halvings":0,"cell_chars":16384,"cell_head_chars":4096},"cells_cut":0,"cells_raw":0,"read":"whole","date_system":"1900"}

{"sheet":"Vollmacht","index":0,"n_rows":221,"n_cols":29,"rows_kept":221,"cut":false,"hidden":false,"merged":[[10,5,10,8],[151,5,151,14],[6,5,6,29],[16,11,16,23],[113,5,113,25],[111,6,111,23],[110,28,111,28],[30,6,32,6],[30,8,32,16],[88,5,90,5],[95,7,100,28],[45,20,51,30],[53,8,55,16],[78,6,80,6],[53,20,59,30],[73,8,75,16],[35,18,37,18],[35,20,37,30],[40,20,42,30],[35,8,37,16],[15,11,15,23],[40,18,42,18],[88,7,93,28],[73,6,75,6],[62,20,68,30],[63,8,65,16],[68,8,70,16],[86,5,86,11],[7,5,7,10],[91,2,93,2],[98,2,100,2],[115,5,115,15],[78,8,84,16],[88,2,90,2],[95,5,97,5],[95,2,97,2],[9,5,9,29],[19,6,19,26],[58,6,60,6],[53,18,55,18],[62,18,64,18],[53,6,55,6],[12,5,12,10],[58,8,60,16],[13,5,13,10],[18,6,18,29],[24,5,24,16],[40,6,42,6],[40,8,42,16],[30,18,32,18],[30,20,32,28],[35,6,37,6],[215,5,215,6],[198,5,198,6],[205,5,205,6],[208,5,208,6],[152,22,152,29],[137,4,137,29],[151,16,151,18],[157,7,157,30],[158,7,158,30],[160,7,160,30],[162,7,162,30],[161,7,161,30],[163,7,163,30],[45,8,51,16],[45,6,47,6],[45,18,47,18],[71,18,73,18],[71,20,77,30],[68,6,70,6],[63,6,65,6],[110,24,111,27],[107,22,108,25],[168,7,168,30],[169,7,169,30],[170,7,170,30],[171,7,171,30],[172,7,172,30],[165,7,165,30],[164,7,164,30],[166,7,166,30],[167,7,167,30],[121,5,121,25],[139,5,139,26],[181,7,181,30],[182,7,182,30],[183,7,183,30],[184,7,184,30],[190,7,190,30],[173,7,173,30],[174,7,174,30],[179,7,179,30],[180,7,180,30],[197,7,197,30],[198,7,198,30],[199,7,199,30],[200,7,200,30],[191,7,191,30],[192,7,192,30],[193,7,193,30],[194,7,194,30],[195,7,195,30],[195,5,195,6],[201,7,201,30],[202,7,202,30],[216,7,216,30],[217,7,217,30],[220,7,220,30],[221,7,221,30],[186,7,186,30],[187,7,187,30],[188,7,188,30],[189,7,189,30],[218,7,218,30],[219,7,219,30],[208,7,208,30],[212,7,212,30],[213,7,213,30],[214,7,214,30],[215,7,215,30],[203,7,203,30],[204,7,204,30],[205,7,205,30],[206,7,206,30],[207,7,207,30],[196,7,196,30]]}
[]
[]
[]
[]
[]
[]
[null,null,1,null,null,""]
[null,null,2,null,null,"Vollmachtgeber/in1"]
[]
[null,null,3,null,null,""]
[null,null,4,null,null,"IdNr.2, 3"]
[]
[null,null,5,null,null,""]
[null,null,6,null,null,"Geburtsdatum"]
[]
[null,null,7,null,null,null,null,null,null,null,null,"Vollmacht4"]
[null,null,8,null,null,null,null,null,null,null,null,"zur Vertretung in Steuersachen"]
[]
[null,null,9]
[null,null,10,null,null,null,"Bevollmächtigte/r5 (Name/Kanzlei)"]
[]
[null,null,11,null,null,"- in diesem Verfahren vertreten durch die nach bürgerlichem Recht und dem StBerG dazu befugten Personen -"]
[]
[null,null,12,null,null,"wird hiermit bevollmächtigt, den/die Vollmachtgeber/in in allen steuerlichen und sonstigen Angelegen-"]
[null,null,13,null,null,"heiten im Sinne des § 1 StBerG zu vertreten6."]
[]
[null,null,14,null,null,null," Der/Die Bevollmächtigte ist berechtigt, Untervollmachten zu erteilen und zu widerrufen."]
[]
[null,null,15,null,null,"Diese Vollmacht gilt nicht für: "]
[]
[null,null,null,null,null,null,null,null,"Einkommensteuer",null,null,null,null,null,null,null,null,null,null,null,"das Lohnsteuerermäßigungsverfahren"]
[]
[]
[]
[]
[null,null,null,null,null,null,null,null,"Umsatzsteuer",null,null,null,null,null,null,null,null,null,null,null,"Investitionszulage"]
[]
[]
[]
[]
[null,null,null,null,null,null,null,null,"Gewerbesteuer",null,null,null,null,null,null,null,null,null,null,null,"das Festsetzungsverfahren"]
[]
[]
[]
[]
[null,null,null,null,null,null,null,null,"Feststellungsverfahren nach § 180 Abs. 1\nSatz 1 Nr. 2, Abs. 2 AO",null,null,null,null,null,null,null,null,null,null,null,"das Erhebungsverfahren (einschließlich des\nVollstreckungsverfahrens)"]
[]
[]
[]
[]
[]
[]
[]
[null,null,null,null,null,null,null,null,"Körperschaftsteuer",null,null,null,null,null,null,null,null,null,null,null,"die Vertretung im außergerichtlichen Rechts-\nbehelfsverfahren"]
[]
[]
[]
[]
[null,null,null,null,null,null,null,null,"Lohnsteuer"]
[]
[]
[]
[null,null,null,null,null,null,null,null,null,null,null,null,null,null,null,null,null,null,null,null,"die Vertretung im Verfahren der Finanzge-\nrichtsbarkeit"]
[null,null,null,null,null,null,null,null,"Grundsteuer"]
[]
[]
[]
[]
[null,null,null,null,null,null,null,null,"Grunderwerbsteuer"]
[]
[]
[null,null,null,null,null,null,null,null,null,null,null,null,null,null,null,null,null,null,null,null,"die Vertretung im Straf- und Bußgeldverfah-\nren (Steuer)"]
[]
[null,null,null,null,null,null,null,null,"Erbschaft-/Schenkungsteuer"]
[]
[]
[]
[]
[null,null,null,null,null,null,null,null,"das Umsatzsteuervoranmeldungs-\nverfahren"]
[]
[]
[]
[]
[]
[]
[]
[null,null,16,null,null,"Bekanntgabevollmacht7:",null,null,null,null,null,null,null,null,null,null,null,null,null,"\n"]
[]
[null,null,17,null,null,null,null,"Die Vollmacht erstreckt sich auch auf die Entgegennahme von Steuerbescheiden und sonstigen\nVerwaltungsakten8."]
[]
[]
[null,null,18]
[]
[]
[]
[null,null,19,null,null,null,null,"Die Vollmacht erstreckt sich auch auf die Entgegennahme von Mahnungen und Voll-\nstreckungsankündigungen."]
[]
[]
[null,null,20]
[]
[]
[]
[]
[null,null,21,null,null,"Die Vollmacht gilt grundsätzlich zeitlich unbefristet,"]
[]
[null,null,22,null,null,"aber"]
[]
[]
[null,null,23,null,null,null,"  nicht für Veranlagungszeiträume bzw. Veranlagungsstichtag/e vor ",null,null,null,null,null,null,null,null,null,null,null,null,null,null,null,null,null,null,null,"."]
[]
[null,null,null,null,null,null,null,null,null,null,null,null,null,null,null,null,null,null,null,null,null,null,null,null,null,null,null,null,"9."]
[null,null,24,null,null,null,"  nur für den/die Veranlagungszeitraum/-zeiträume bzw. Veranlagungsstichtag/e"]
[]
[null,null,25,null,null,"Die Vollmacht gilt, solange ihr Widerruf den Verfahrensbeteiligten nicht angezeigt worden ist10."]
[]
[null,null,26,null,null,"Bisher erteilte Vollmachten erlöschen.11"]
[]
[null,null,27,null,null,"oder"]
[]
[null,null,28,null,null,null,"  Nur dem/der o.a. Bevollmächtigten bisher erteilte Vollmachten erlöschen."]
[]
[null,null,29,null,null,"Vollmacht zum Abruf von bei der Finanzverwaltung gespeicherten steuerlichen Daten12:"]
[]
[null,null,30,null,null,"Die Vollmacht erstreckt sich im Ausmaß der Bevollmächtigung nach Zeilen 7 bis 15 und 21 bis 28"]
[null,null,31,null,null,"auch auf den elektronischen Datenabruf hinsichtlich der bei der Finanzverwaltung zum/zur oder für"]
[null,null,32,null,null,"den/die Vollmachtgeber/in gespeicherten steuerlichen Daten, soweit die Finanzverwaltung den Weg"]
[null,null,33,null,null,"hierfür eröffnet hat."]
[]
[null,null,34,null,null,null,"  Diese Abrufbefugnis wird nicht erteilt."]
[]
[]
[]
[null,null,null,null,null,"Vollmacht § 3 StBerG Juli 2019"]
[]
[]
[]
[]
[null,null,null,null,"- 2 - "]
[]
[null,null,35,null,null,"Soweit im Fall einer sachlichen oder zeitlichen Beschränkung der Bevollmächtigung13 die"]
[null,null,36,null,null,"Abrufbefugnis aus technischen Gründen nicht beschränkbar ist, ist ein Datenabruf ausgeschlossen"]
[null,null,37,null,null,"(soweit nicht nachfolgend die Abrufbefugnis ausgedehnt wird)."]
[]
[null,null,38,null,null,null,"  Ungeachtet der Beschränkung der Bevollmächtigung wird dem/der o.a. Bevollmächtigten eine"]
[null,null,39,null,null,null,"  unbeschränkte Abrufbefugnis erteilt."]
[]
[]
[null,null,40,null,null,"Ich bin damit einverstanden, dass alle Daten dieser Vollmacht elektronisch in einer Vollmachtsdaten-"]
[null,null,41,null,null,"bank gespeichert und an die Finanzverwaltung übermittelt werden."]
[]
[]
[null,null,42,null,null,null,null,null,null,null,null,null,null,null,null,","]
[null,null,43,null,null,"Ort,",null,null,null,null,null,null,null,null,null,null,"Datum",null,null,null,null,null,"Unterschrift Vollmachtgeber/in14"]
[]
[]
[]
[]
[null,null,null,null,null,1,null,"Bei Ehegatten bzw. Lebenspartnern sind, auch im Fall der Zusammenveranlagung, zwei eigenständige Vollmachten zu"]
[null,null,null,null,null,null,null,"erteilen."]
[]
[null,null,null,null,null,2,null,"Bei Körperschaften, Vermögensmassen und Personengesellschaften/-gemeinschaften sind bis zur Vergabe der W-IdNr. die"]
[null,null,null,null,null,null,null,"derzeitig gültigen Steuernummern im Beiblatt zur Vollmacht und in dem an die Finanzverwaltung zu übermittelnden Daten-"]
[null,null,null,null,null,null,null,"satz anzugeben (vgl. Fußnote 3). In der Vollmacht selbst kann in diesem Fall auf die Angabe einer Steuernummer an dieser"]
[null,null,null,null,null,null,null,"Stelle verzichtet werden (Ausnahme: die Vollmacht soll der Finanzbehörde in Papier vorgelegt werden)."]
[]
[null,null,null,null,null,3,null,"Die Steuernummern des/der Vollmachtgebers/in sind im Beiblatt zur Vollmacht und in der Vollmachtsdatenbank zu erfas-"]
[null,null,null,null,null,null,null,"sen. In der Vollmacht selbst kann auf die Angabe einer Steuernummer an dieser Stelle verzichtet werden (Ausnahme: die"]
[null,null,null,null,null,null,null,"Vollmacht soll der Finanzbehörde in Papier vorgelegt werden)."]
[]
[null,null,null,null,null,4,null,"Diese Vollmacht regelt das Außenverhältnis zur Finanzbehörde und gilt im Auftragsverhältnis zwischen Bevollmächtigtem"]
[null,null,null,null,null,null,null,"und Mandant, soweit nichts anderes bestimmt ist."]
[]
[null,null,null,null,null,5,null,"Person oder Gesellschaft, die nach § 3 StBerG zur Hilfeleistung in Steuersachen befugt ist."]
[]
[null,null,null,null,null,6,null,"Die Vollmacht umfasst insbesondere die Berechtigung"]
[null,null,null,null,null,null,null,"-","  zur Abgabe und Entgegennahme von Erklärungen jeder Art,"]
[null,null,null,null,null,null,null,"-","  zur Stellung von Anträgen in Haupt-, Neben- und Folgeverfahren,"]
[null,null,null,null,null,null,null,"-","  zur Einlegung und Rücknahme außergerichtlicher Rechtsbehelfe jeder Art sowie zum Rechtsbehelfsverzicht,"]
[null,null,null,null,null,null,null,"-","  zu außergerichtlichen Verhandlungen jeder Art."]
[null,null,null,null,null,null,null,"Die Berechtigung zur Entgegennahme von Steuerbescheiden und sonstigen Verwaltungsakten im Steuerschuldverhältnis"]
[null,null,null,null,null,null,null,"ist in der Regel nur gegeben, soweit der/die Vollmachtgeber/in hierzu ausdrücklich bevollmächtigt hat (Hinweis auf § 122"]
[null,null,null,null,null,null,null,"Abs. 1 Satz 4 AO; vgl. Zeilen 16 bis 20)."]
[]
[null,null,null,null,null,7,null,"Sachliche und/oder zeitliche Beschränkungen der Bevollmächtigung in Zeilen 15 und 21 bis 28 gelten auch bei der"]
[null,null,null,null,null,null,null,"Bekanntgabevollmacht."]
[]
[null,null,null,null,null,8,null,"Gilt die Vertretungsvollmacht für die von der Gesellschaft/Gemeinschaft geschuldeten (Betriebs-)Steuern und wird das"]
[null,null,null,null,null,null,null,"Feststellungsverfahren nicht in Zeile 15 abgewählt, wirkt die Vollmacht bei Ankreuzen der Zeile 17 zugleich als Bekannt-"]
[null,null,null,null,null,null,null,"gabevollmacht für die von der Gesellschaft/Gemeinschaft geschuldeten (Betriebs-) Steuern nach § 122 AO und als Emp-"]
[null,null,null,null,null,null,null,"fangsvollmacht für das Feststellungsverfahren nach § 183 AO."]
[]
[null,null,null,null,null,9,null,"Soweit für einen künftigen Veranlagungszeitraum/-stichtag von derVerlängerung der Abgabefristen nach § 149 Abs. 3 AO"]
[null,null,null,null,null,null,null,"profitiert werden soll, ist dies nur möglich, wenn erneut ein zur Hilfeleistung in Steuersachen Befugter (§§ 3 und 4 StBerG)"]
[null,null,null,null,null,null,null,"mit Erstellung der Steuererklärung beauftragt (und ggf. bevollmächtigt) wird."]
[]
[null,null,null,null,null,10,null,"Ein Widerruf der erteilten Vollmacht wird der Finanzbehörde gegenüber erst wirksam, wenn er ihr zugeht (vgl. § 80 Abs. 1 "]
[null,null,null,null,null,null,null,"Satz 3 AO)."]
[]
[null,null,null,null,null,11,null,"Dies gilt auch für Vollmachten, die nicht nach amtlich bestimmtem Formular nach amtlich vorgeschriebenem Datensatz über"]
[null,null,null,null,null,null,null,"die amtlich bestimmten Schnittstellen elektronisch übermittelt worden sind. Bislang erteilte Bekanntgabevollmachten nach"]
[null,null,null,null,null,null,null,"§ 122 AO und Empfangsvollmachten nach § 183 AO erlöschen bei Anzeige einer neuen Bekanntgabe- oder Empfangsvoll-"]
[null,null,null,null,null,null,null,"macht in jedem Fall. Das Erlöschen von Datenabrufvollmachten, die nicht mittels einer Vollmachtsdatenbank der Kammer"]
[null,null,null,null,null,null,null,"an das automationsgestützte Berechtigungsmanagement der Finanzverwaltung übermittelt worden sind, ist gesondert an-"]
[null,null,null,null,null,null,null,"zuzeigen."]
[]
[null,null,null,null,null,12,null,"Wegen der technisch bedingten Einschränkungen in Bezug auf die Abrufbefugnis bei sachlicher und/oder zeitlicher"]
[null,null,null,null,null,null,null,"Beschränkung der Bevollmächtigung Hinweis auf die Zeilen 35 bis 39."]
[]
[null,null,null,null,null,13,null,"Ein Ausschluss der Bevollmächtigung in Zeile 15 für die Vertretung"]
[null,null,null,null,null,null,null,"-","  im außergerichtlichen Rechtsbehelfsverfahren,"]
[null,null,null,null,null,null,null,"-","  in Verfahren der Finanzgerichtsbarkeit und"]
[null,null,null,null,null,null,null,"-","  im Straf- und Bußgeldverfahren in Steuersachen"]
[null,null,null,null,null,null,null,"ist für den Umfang der Datenabrufbefugnis des/der Bevollmächtigten unerheblich. Eintragungen in Zeile 35 bis 39 sind in"]
[null,null,null,null,null,null,null,"diesem Fall nicht erforderlich."]
[]
[null,null,null,null,null,14,null,"Bei Körperschaften, Vermögensmassen und Personengesellschaften/-gemeinschaften ist die Vollmacht vom gesetzlichen"]
[null,null,null,null,null,null,null,"Vertreter zu unterschreiben. Bei Personengesellschaften und -gemeinschaften i. S. d. § 180 Abs. 1 Satz 1 Nr. 2 Buchst. a"]
[null,null,null,null,null,null,null,"AO muss die Vollmacht demselben Bevollmächtigten gleichzeitig von den zur Vertretung der Feststellungsbeteiligten"]
[null,null,null,null,null,null,null,"berechtigten Personen für das Feststellungsverfahren und von den zur Vertretung der Gesellschaft/Gemeinschaft berech-"]
[null,null,null,null,null,null,null,"tigten Personen für die Festsetzung der von der Gesellschaft/Gemeinschaft geschuldeten (Betriebs-)Steuern erteilt und"]
[null,null,null,null,null,null,null,"unterschrieben werden, sofern nicht in Zeile 15 das Feststellungsverfahren abgewählt wurde."]

{"sheet":"Beiblatt","index":1,"n_rows":135,"n_cols":24,"rows_kept":135,"cut":false,"hidden":false,"merged":[[54,5,54,15],[54,16,54,22],[54,23,54,29],[12,5,12,29],[55,5,55,15],[55,16,55,22],[55,23,55,29],[6,5,6,29],[18,5,18,29],[20,5,20,29],[53,5,53,15],[53,16,53,22],[53,23,53,29],[10,5,10,10],[7,5,7,12],[9,5,9,29],[58,23,58,29],[58,5,58,15],[58,16,58,22],[59,5,59,15],[59,16,59,22],[59,23,59,29],[56,5,56,15],[56,16,56,22],[56,23,56,29],[57,5,57,15],[57,16,57,22],[57,23,57,29],[74,5,74,29],[75,5,75,12],[67,5,67,29],[65,5,65,14],[65,16,65,18],[83,16,83,22],[83,23,83,29],[62,23,62,29],[60,5,60,15],[60,16,60,22],[60,23,60,29],[61,5,61,15],[61,16,61,22],[61,23,61,29],[62,5,62,15],[62,16,62,22],[77,5,77,29],[78,5,78,10],[82,5,82,15],[82,16,82,22],[82,23,82,29],[83,5,83,15],[86,5,86,15],[86,16,86,22],[86,23,86,29],[87,5,87,15],[87,16,87,22],[87,23,87,29],[84,5,84,15],[84,16,84,22],[84,23,84,29],[85,5,85,15],[85,16,85,22],[85,23,85,29],[90,5,90,15],[90,16,90,22],[90,23,90,29],[91,5,91,15],[91,16,91,22],[91,23,91,29],[88,5,88,15],[88,16,88,22],[88,23,88,29],[89,5,89,15],[89,16,89,22],[89,23,89,29],[94,5,94,15],[94,16,94,22],[94,23,94,29],[95,5,95,15],[95,16,95,22],[95,23,95,29],[92,5,92,15],[92,16,92,22],[92,23,92,29],[93,5,93,15],[93,16,93,22],[93,23,93,29],[98,5,98,15],[98,16,98,22],[98,23,98,29],[99,5,99,15],[99,16,99,22],[99,23,99,29],[96,5,96,15],[96,16,96,22],[96,23,96,29],[97,5,97,15],[97,16,97,22],[97,23,97,29],[102,5,102,15],[102,16,102,22],[102,23,102,29],[103,5,103,15],[103,16,103,22],[103,23,103,29],[100,5,100,15],[100,16,100,22],[100,23,100,29],[101,5,101,15],[101,16,101,22],[101,23,101,29],[106,5,106,15],[106,16,106,22],[106,23,106,29],[107,5,107,15],[107,16,107,22],[107,23,107,29],[104,5,104,15],[104,16,104,22],[104,23,104,29],[105,5,105,15],[105,16,105,22],[105,23,105,29],[110,5,110,15],[110,16,110,22],[110,23,110,29],[111,5,111,15],[111,16,111,22],[111,23,111,29],[108,5,108,15],[108,16,108,22],[108,23,108,29],[109,5,109,15],[109,16,109,22],[109,23,109,29],[114,5,114,15],[114,16,114,22],[114,23,114,29],[115,5,115,15],[115,16,115,22],[115,23,115,29],[112,5,112,15],[112,16,112,22],[112,23,112,29],[113,5,113,15],[113,16,113,22],[113,23,113,29],[134,5,134,29],[125,5,125,15],[125,16,125,22],[125,23,125,29],[129,5,129,15],[129,16,129,22],[129,23,129,29],[116,5,116,15],[116,16,116,22],[116,23,116,29],[117,5,117,15],[117,16,117,22],[117,23,117,29],[130,5,130,15],[130,16,130,22],[130,23,130,29],[127,5,127,15],[132,16,132,18],[127,16,127,22],[127,23,127,29],[128,5,128,15],[128,16,128,22],[128,23,128,29],[132,5,132,14],[118,5,118,15],[118,16,118,22],[118,23,118,29],[119,5,119,15],[119,16,119,22],[119,23,119,29],[120,5,120,15],[120,16,120,22],[120,23,120,29],[121,5,121,15],[121,16,121,22],[121,23,121,29],[122,5,122,15],[122,16,122,22],[122,23,122,29],[126,5,126,15],[126,16,126,22],[126,23,126,29],[123,5,123,15],[123,16,123,22],[123,23,123,29],[124,5,124,15],[124,16,124,22],[124,23,124,29]]}
[]
[]
[]
[]
[]
[]
[null,null,null,null,null,{"$f":"IF(B_Vollmachtgeber=\"\",\"\",B_Vollmachtgeber)","v":""}]
[null,null,null,null,null,"Vollmachtgeber/in"]
[]
[null,null,null,null,null,{"$f":"IF(B_IdentNummer=\"\",\"\",B_IdentNummer)","v":""}]
[null,null,null,null,null,"IdNr."]
[]
[null,null,null,null,null,{"$f":"IF(B_Bevollmaechtigter=\"\",\"\",B_Bevollmaechtigter)","v":""}]
[null,null,null,null,null,"Bevollmächtigte/r (Name/Kanzlei)"]
[]
[]
[]
[]
[null,null,null,null,null,"Beiblatt"]
[]
[null,null,null,null,null,"zur Vollmacht zur Vertretung in Steuersachen"]
[]
[]
[]
[null,null,null,null,null,"Dem/Der Vollmachtgeber/in ist bekannt, dass im Verhältnis zur Finanzverwaltung die von ihm/ihr "]
[null,null,null,null,null,"dem/der Bevollmächtigten nach amtlich vorgeschriebenem Vollmachtsmuster erteilte Vollmacht nur in "]
[null,null,null,null,null,"dem Umfang Wirkung entfaltet, wie sie von dem/der Bevollmächtigten gegenüber der "]
[null,null,null,null,null,"Finanzverwaltung angezeigt wird."]
[]
[null,null,null,null,null,"Die nach amtlich vorgeschriebenem Vollmachtsmuster erteilte Vollmacht wird gegenüber der "]
[null,null,null,null,null,"Finanzverwaltung für die nachfolgend aufgeführten Steuernummern des/der o. g. Vollmachtgebers/in "]
[null,null,null,null,null,"von dem/der o.g. Bevollmächtigten angezeigt und entfaltet nur insoweit im Verhältnis zur "]
[null,null,null,null,null,"Finanzverwaltung Wirkung. Sofern mit der nach amtlich vorgeschriebenem Vollmachtsmuster erteilten "]
[null,null,null,null,null,"Vollmacht bisher erteilte Vollmachten widerrufen werden sollen, gilt der Widerruf nur für die "]
[null,null,null,null,null,"nachfolgend aufgeführten Steuernummern."]
[]
[null,null,null,null,null,"Sollte der/die o. g. Vollmachtgeber/in steuerlich unter weiteren, jedoch hier nicht aufgeführten "]
[null,null,null,null,null,"Steuernummern geführt werden, entfaltet die nach amtlich vorgeschriebenem Vollmachtsmuster "]
[null,null,null,null,null,"erteilte Vollmacht für den/die o. g. Bevollmächtigten im Verhältnis zur Finanzverwaltung insoweit keine "]
[null,null,null,null,null,"Wirkung."]
[]
[null,null,null,null,null,"Das Beiblatt ist bei erstmaliger Vollmachterteilung von dem/der Vollmachtgeber/in zu unterschreiben."]
[]
[null,null,null,null,null,"Bei späteren Änderungen und/oder Ergänzungen, die sich allein auf den Steuernummernumfang, aber "]
[null,null,null,null,null,"nicht auf den Inhalt der nach amtlich vorgeschriebenem Vollmachtsmuster erteilten Vollmacht "]
[null,null,null,null,null,"auswirken, muss kein neues Beiblatt unterzeichnet werden, wenn der/die o. g. Bevollmächtigte die mit "]
[null,null,null,null,null,"dem/der o. g. Vollmachtgeber/in - ggf. konkludent - getroffene Vereinbarung zum "]
[null,null,null,null,null,"Steuernummernumfang in geeigneter Weise dokumentiert. Die Änderung oder Ergänzung ist der "]
[null,null,null,null,null,"Finanzverwaltung in einem entsprechenden Datensatz zu übermitteln."]
[]
[]
[null,null,null,null,null,"Finanzamt",null,null,null,null,null,null,null,null,null,null,"Steuernummer",null,null,null,null,null,null,"Land"]
[]
[]
[]
[]
[]
[]
[]
[]
[]
[]
[]
[]
[]
[null,null,null,null,null,{"$f":"IF(B_Ort=\"\",\"\",B_Ort)","v":""},null,null,null,null,null,null,null,null,null,",",{"$f":"IF(B_Datum=\"\",\"\",TEXT(B_Datum,\"TT.MM.JJJJ\"))","v":""}]
[null,null,null,null,null,"Ort,",null,null,null,null,null,null,null,null,null,null,"Datum",null,null,null,null,null,"Unterschrift Vollmachtgeber/in"]
[]
[]
[]
[]
[]
[]
[]
[null,null,null,null,null,{"$f":"IF(B_Vollmachtgeber=\"\",\"\",B_Vollmachtgeber)","v":""}]
[null,null,null,null,null,"Vollmachtgeber/in"]
[]
[null,null,null,null,null,{"$f":"IF(B_IdentNummer=\"\",\"\",B_IdentNummer)","v":""}]
[null,null,null,null,null,"IdNr."]
[]
[null,null,null,null,null,"Finanzamt",null,null,null,null,null,null,null,null,null,null,"Steuernummer",null,null,null,null,null,null,"Land"]
[]
[]
[]
[]
[]
[]
[]
[]
[]
[]
[]
[]
[]
[]
[]
[]
[]
[]
[]
[]
[]
[]
[]
[]
[]
[]
[]
[]
[]
[]
[]
[]
[]
[]
[]
[]
[]
[]
[]
[]
[]
[]
[]
[]
[]
[]
[]
[]
[]
[]
[]
[null,null,null,null,null,{"$f":"IF(B_Ort=\"\",\"\",B_Ort)","v":""},null,null,null,null,null,null,null,null,null,","]
[null,null,null,null,null,"Ort,",null,null,null,null,null,null,null,null,null,null,"Datum",null,null,null,null,null,"Unterschrift Vollmachtgeber/in"]
[null,null,null,null,null,"Seite 2 von 2"]

{"sheet":"Vollmacht Partner","index":2,"n_rows":221,"n_cols":29,"rows_kept":221,"cut":false,"hidden":false,"merged":[[205,5,205,6],[199,5,199,6],[202,5,202,6],[151,5,151,14],[195,5,195,6],[198,5,198,6],[91,2,93,2],[98,2,100,2],[115,5,115,15],[78,8,84,16],[88,2,90,2],[95,5,97,5],[95,2,97,2],[113,5,113,25],[111,6,111,23],[88,5,90,5],[88,7,93,28],[19,6,19,26],[12,5,12,10],[15,11,15,23],[13,5,13,10],[18,6,18,29],[45,20,51,30],[53,8,55,16],[53,20,59,30],[73,8,75,16],[71,18,73,18],[62,20,68,30],[63,8,65,16],[53,18,55,18],[62,18,64,18],[45,18,47,18],[68,8,70,16],[58,8,60,16],[45,6,47,6],[40,6,42,6],[40,8,42,16],[45,8,51,16],[68,6,70,6],[63,6,65,6],[58,6,60,6],[53,6,55,6],[40,18,42,18],[6,5,6,29],[16,11,16,23],[30,6,32,6],[30,8,32,16],[35,20,37,30],[40,20,42,30],[24,5,24,16],[30,18,32,18],[30,20,32,28],[35,6,37,6],[35,8,37,16],[7,5,7,10],[10,5,10,8],[35,18,37,18],[9,5,9,29],[215,5,215,6],[86,5,86,11],[121,5,121,26],[139,5,139,25],[73,6,75,6],[152,22,152,29],[137,4,137,29],[71,20,77,30],[78,6,80,6],[110,24,111,27],[107,22,108,25],[151,16,151,18],[95,7,100,28],[110,28,111,28],[208,5,208,6],[194,5,194,6]]}
[]
[]
[]
[]
[]
[]
[null,null,1,null,null,""]
[null,null,2,null,null,"Vollmachtgeber/in1"]
[]
[null,null,3,null,null,""]
[null,null,4,null,null,"IdNr.2, 3"]
[]
[null,null,5,null,null,""]
[null,null,6,null,null,"Geburtsdatum"]
[]
[null,null,7,null,null,null,null,null,null,null,null,"Vollmacht4"]
[null,null,8,null,null,null,null,null,null,null,null,"zur Vertretung in Steuersachen"]
[]
[null,null,9]
[null,null,10,null,null,null,"Bevollmächtigte/r5 (Name/Kanzlei)"]
[]
[null,null,11,null,null,"- in diesem Verfahren vertreten durch die nach bürgerlichem Recht und dem StBerG dazu befugten Personen -"]
[]
[null,null,12,null,null,"wird hiermit bevollmächtigt, den/die Vollmachtgeber/in in allen steuerlichen und sonstigen Angelegen-"]
[null,null,13,null,null,"heiten im Sinne des § 1 StBerG zu vertreten6."]
[]
[null,null,14,null,null,null," Der/Die Bevollmächtigte ist berechtigt, Untervollmachten zu erteilen und zu widerrufen."]
[]
[null,null,15,null,null,"Diese Vollmacht gilt nicht für: "]
[]
[null,null,null,null,null,null,null,null,"Einkommensteuer",null,null,null,null,null,null,null,null,null,null,null,"das Lohnsteuerermäßigungsverfahren"]
[]
[]
[]
[]
[null,null,null,null,null,null,null,null,"Umsatzsteuer",null,null,null,null,null,null,null,null,null,null,null,"Investitionszulage"]
[]
[]
[]
[]
[null,null,null,null,null,null,null,null,"Gewerbesteuer",null,null,null,null,null,null,null,null,null,null,null,"das Festsetzungsverfahren"]
[]
[]
[]
[]
[null,null,null,null,null,null,null,null,"Feststellungsverfahren nach § 180 Abs. 1\nSatz 1 Nr. 2, Abs. 2 AO",null,null,null,null,null,null,null,null,null,null,null,"das Erhebungsverfahren (einschließlich des\nVollstreckungsverfahrens)"]
[]
[]
[]
[]
[]
[]
[]
[null,null,null,null,null,null,null,null,"Körperschaftsteuer",null,null,null,null,null,null,null,null,null,null,null,"die Vertretung im außergerichtlichen Rechts-\nbehelfsverfahren"]
[]
[]
[]
[]
[null,null,null,null,null,null,null,null,"Lohnsteuer"]
[]
[]
[]
[null,null,null,null,null,null,null,null,null,null,null,null,null,null,null,null,null,null,null,null,"die Vertretung im Verfahren der Finanzge-\nrichtsbarkeit"]
[null,null,null,null,null,null,null,null,"Grundsteuer"]
[]
[]
[]
[]
[null,null,null,null,null,null,null,null,"Grunderwerbsteuer"]
[]
[]
[null,null,null,null,null,null,null,null,null,null,null,null,null,null,null,null,null,null,null,null,"die Vertretung im Straf- und Bußgeldverfah-\nren (Steuer)"]
[]
[null,null,null,null,null,null,null,null,"Erbschaft-/Schenkungsteuer"]
[]
[]
[]
[]
[null,null,null,null,null,null,null,null,"das Umsatzsteuervoranmeldungs-\nverfahren"]
[]
[]
[]
[]
[]
[]
[]
[null,null,16,null,null,"Bekanntgabevollmacht7:",null,null,null,null,null,null,null,null,null,null,null,null,null,"\n"]
[]
[null,null,17,null,null,null,null,"Die Vollmacht erstreckt sich auch auf die Entgegennahme von Steuerbescheiden und sonstigen\nVerwaltungsakten8."]
[]
[]
[null,null,18]
[]
[]
[]
[null,null,19,null,null,null,null,"Die Vollmacht erstreckt sich auch auf die Entgegennahme von Mahnungen und Voll-\nstreckungsankündigungen."]
[]
[]
[null,null,20]
[]
[]
[]
[]
[null,null,21,null,null,"Die Vollmacht gilt grundsätzlich zeitlich unbefristet,"]
[]
[null,null,22,null,null,"aber"]
[]
[]
[null,null,23,null,null,null,"  nicht für Veranlagungszeiträume bzw. Veranlagungsstichtag/e vor ",null,null,null,null,null,null,null,null,null,null,null,null,null,null,null,null,null,null,null,"."]
[]
[null,null,null,null,null,null,null,null,null,null,null,null,null,null,null,null,null,null,null,null,null,null,null,null,null,null,null,null,"9."]
[null,null,24,null,null,null,"  nur für den/die Veranlagungszeitraum/-zeiträume bzw. Veranlagungsstichtag/e"]
[]
[null,null,25,null,null,"Die Vollmacht gilt, solange ihr Widerruf den Verfahrensbeteiligten nicht angezeigt worden ist10."]
[]
[null,null,26,null,null,"Bisher erteilte Vollmachten erlöschen.11"]
[]
[null,null,27,null,null,"oder"]
[]
[null,null,28,null,null,null,"  Nur dem/der o.a. Bevollmächtigten bisher erteilte Vollmachten erlöschen."]
[]
[null,null,29,null,null,"Vollmacht zum Abruf von bei der Finanzverwaltung gespeicherten steuerlichen Daten12:"]
[]
[null,null,30,null,null,"Die Vollmacht erstreckt sich im Ausmaß der Bevollmächtigung nach Zeilen 7 bis 15 und 21 bis 28"]
[null,null,31,null,null,"auch auf den elektronischen Datenabruf hinsichtlich der bei der Finanzverwaltung zum/zur oder für"]
[null,null,32,null,null,"den/die Vollmachtgeber/in gespeicherten steuerlichen Daten, soweit die Finanzverwaltung den Weg"]
[null,null,33,null,null,"hierfür eröffnet hat."]
[]
[null,null,34,null,null,null,"  Diese Abrufbefugnis wird nicht erteilt."]
[]
[]
[]
[null,null,null,null,null,"Vollmacht § 3 StBerG Juli 2019"]
[]
[]
[]
[]
[null,null,null,null,"- 2 - "]
[]
[null,null,35,null,null,"Soweit im Fall einer sachlichen oder zeitlichen Beschränkung der Bevollmächtigung13 die"]
[null,null,36,null,null,"Abrufbefugnis aus technischen Gründen nicht beschränkbar ist, ist ein Datenabruf ausgeschlossen"]
[null,null,37,null,null,"(soweit nicht nachfolgend die Abrufbefugnis ausgedehnt wird)."]
[]
[null,null,38,null,null,null,"  Ungeachtet der Beschränkung der Bevollmächtigung wird dem/der o.a. Bevollmächtigten eine"]
[null,null,39,null,null,null,"  unbeschränkte Abrufbefugnis erteilt."]
[]
[]
[null,null,40,null,null,"Ich bin damit einverstanden, dass alle Daten dieser Vollmacht elektronisch in einer Vollmachtsdaten-"]
[null,null,41,null,null,"bank gespeichert und an die Finanzverwaltung übermittelt werden."]
[]
[]
[null,null,42,null,null,null,null,null,null,null,null,null,null,null,null,","]
[null,null,43,null,null,"Ort,",null,null,null,null,null,null,null,null,null,null,"Datum",null,null,null,null,null,"Unterschrift Vollmachtgeber/in14"]
[]
[]
[]
[]
[null,null,null,null,null,1,null,"Bei Ehegatten bzw. Lebenspartnern sind, auch im Fall der Zusammenveranlagung, zwei eigenständige Vollmachten zu"]
[null,null,null,null,null,null,null,"erteilen."]
[]
[null,null,null,null,null,2,null,"Bei Körperschaften, Vermögensmassen und Personengesellschaften/-gemeinschaften sind bis zur Vergabe der W-IdNr. die"]
[null,null,null,null,null,null,null,"derzeitig gültigen Steuernummern im Beiblatt zur Vollmacht und in dem an die Finanzverwaltung zu übermittelnden Daten-"]
[null,null,null,null,null,null,null,"satz anzugeben (vgl. Fußnote 3). In der Vollmacht selbst kann in diesem Fall auf die Angabe einer Steuernummer an dieser"]
[null,null,null,null,null,null,null,"Stelle verzichtet werden (Ausnahme: die Vollmacht soll der Finanzbehörde in Papier vorgelegt werden)."]
[]
[null,null,null,null,null,3,null,"Die Steuernummern des/der Vollmachtgebers/in sind im Beiblatt zur Vollmacht und in der Vollmachtsdatenbank zu erfas-"]
[null,null,null,null,null,null,null,"sen. In der Vollmacht selbst kann auf die Angabe einer Steuernummer an dieser Stelle verzichtet werden (Ausnahme: die"]
[null,null,null,null,null,null,null,"Vollmacht soll der Finanzbehörde in Papier vorgelegt werden)."]
[]
[null,null,null,null,null,4,null,"Diese Vollmacht regelt das Außenverhältnis zur Finanzbehörde und gilt im Auftragsverhältnis zwischen Bevollmächtigtem"]
[null,null,null,null,null,null,null,"und Mandant, soweit nichts anderes bestimmt ist."]
[]
[null,null,null,null,null,5,null,"Person oder Gesellschaft, die nach § 3 StBerG zur Hilfeleistung in Steuersachen befugt ist."]
[]
[null,null,null,null,null,6,null,"Die Vollmacht umfasst insbesondere die Berechtigung"]
[null,null,null,null,null,null,null,"-","  zur Abgabe und Entgegennahme von Erklärungen jeder Art,"]
[null,null,null,null,null,null,null,"-","  zur Stellung von Anträgen in Haupt-, Neben- und Folgeverfahren,"]
[null,null,null,null,null,null,null,"-","  zur Einlegung und Rücknahme außergerichtlicher Rechtsbehelfe jeder Art sowie zum Rechtsbehelfsverzicht,"]
[null,null,null,null,null,null,null,"-","  zu außergerichtlichen Verhandlungen jeder Art."]
[null,null,null,null,null,null,null,"Die Berechtigung zur Entgegennahme von Steuerbescheiden und sonstigen Verwaltungsakten im Steuerschuldverhältnis"]
[null,null,null,null,null,null,null,"ist in der Regel nur gegeben, soweit der/die Vollmachtgeber/in hierzu ausdrücklich bevollmächtigt hat (Hinweis auf § 122"]
[null,null,null,null,null,null,null,"Abs. 1 Satz 4 AO; vgl. Zeilen 16 bis 20)."]
[]
[null,null,null,null,null,7,null,"Sachliche und/oder zeitliche Beschränkungen der Bevollmächtigung in Zeilen 15 und 21 bis 28 gelten auch bei der"]
[null,null,null,null,null,null,null,"Bekanntgabevollmacht."]
[]
[null,null,null,null,null,8,null,"Gilt die Vertretungsvollmacht für die von der Gesellschaft/Gemeinschaft geschuldeten (Betriebs-)Steuern und wird das"]
[null,null,null,null,null,null,null,"Feststellungsverfahren nicht in Zeile 15 abgewählt, wirkt die Vollmacht bei Ankreuzen der Zeile 17 zugleich als Bekannt-"]
[null,null,null,null,null,null,null,"gabevollmacht für die von der Gesellschaft/Gemeinschaft geschuldeten (Betriebs-) Steuern nach § 122 AO und als Emp-"]
[null,null,null,null,null,null,null,"fangsvollmacht für das Feststellungsverfahren nach § 183 AO."]
[]
[null,null,null,null,null,9,null,"Soweit für einen künftigen Veranlagungszeitraum/-stichtag von derVerlängerung der Abgabefristen nach § 149tenAbs. 3 AO"]
[null,null,null,null,null,null,null,"profitiert werden soll, ist dies nur möglich, wenn erneut ein zur Hilfeleistung in Steuersachen Befugter (§§ 3 und 4 StBerG) "]
[null,null,null,null,null,null,null,"mit Erstellung der Steuererklärung beauftragt (und ggf. bevollmächtigt) wird."]
[]
[null,null,null,null,null,10,null,"Ein Widerruf der erteilten Vollmacht wird der Finanzbehörde gegenüber erst wirksam, wenn er ihr zugeht (vgl. § 80 Abs. 1 "]
[null,null,null,null,null,null,null,"Satz 3 AO)."]
[]
[null,null,null,null,null,11,null,"Dies gilt auch für Vollmachten, die nicht nach amtlich bestimmtem Formular nach amtlich vorgeschriebenem Datensatz über"]
[null,null,null,null,null,null,null,"die amtlich bestimmten Schnittstellen elektronisch übermittelt worden sind. Bislang erteilte Bekanntgabevollmachten nach"]
[null,null,null,null,null,null,null,"§ 122 AO und Empfangsvollmachten nach § 183 AO erlöschen bei Anzeige einer neuen Bekanntgabe- oder Empfangsvoll-"]
[null,null,null,null,null,null,null,"macht in jedem Fall. Das Erlöschen von Datenabrufvollmachten, die nicht mittels einer Vollmachtsdatenbank der Kammer"]
[null,null,null,null,null,null,null,"an das automationsgestützte Berechtigungsmanagement der Finanzverwaltung übermittelt worden sind, ist gesondert an-"]
[null,null,null,null,null,null,null,"zuzeigen."]
[]
[null,null,null,null,null,12,null,"Wegen der technisch bedingten Einschränkungen in Bezug auf die Abrufbefugnis bei sachlicher und/oder zeitlicher"]
[null,null,null,null,null,null,null,"Beschränkung der Bevollmächtigung Hinweis auf die Zeilen 35 bis 39."]
[]
[null,null,null,null,null,13,null,"Ein Ausschluss der Bevollmächtigung in Zeile 15 für die Vertretung"]
[null,null,null,null,null,null,null,"-","  im außergerichtlichen Rechtsbehelfverfahren,"]
[null,null,null,null,null,null,null,"-","  in Verfahren der Finanzgerichtsbarkeit und"]
[null,null,null,null,null,null,null,"-","  im Straf- und Bußgeldverfahren in Steuersachen"]
[null,null,null,null,null,null,null,"ist für den Umfang der Datenabrufbefugnis des/der Bevollmächtigten unerheblich. Eintragungen in Zeile 35 bis 39 sind in"]
[null,null,null,null,null,null,null,"diesem Fall nicht erforderlich."]
[]
[null,null,null,null,null,14,null,"Bei Körperschaften, Vermögensmassen und Personengesellschaften/-gemeinschaften ist die Vollmacht vom gesetzlichen"]
[null,null,null,null,null,null,null,"Vertreter zu unterschreiben. Bei Personengesellschaften und -gemeinschaften i. S. d. § 180 Abs. 1 Satz 1 Nr. 2 Buchst. a"]
[null,null,null,null,null,null,null,"AO muss die Vollmacht demselben Bevollmächtigten gleichzeitig von den zur Vertretung der Feststellungsbeteiligten"]
[null,null,null,null,null,null,null,"berechtigten Personen für das Feststellungsverfahren und von den zur Vertretung der Gesellschaft/Gemeinschaft berech-"]
[null,null,null,null,null,null,null,"tigten Personen für die Festsetzung der von der Gesellschaft/Gemeinschaft geschuldeten (Betriebs-)Steuern erteilt und"]
[null,null,null,null,null,null,null,"unterschrieben werden, sofern nicht in Zeile 15 das Feststellungsverfahren abgewählt wurde."]

{"sheet":"Beiblatt Partner","index":3,"n_rows":135,"n_cols":24,"rows_kept":135,"cut":false,"hidden":false,"merged":[[122,5,122,15],[122,16,122,22],[122,23,122,29],[127,23,127,29],[128,5,128,15],[128,16,128,22],[128,23,128,29],[123,5,123,15],[123,16,123,22],[123,23,123,29],[124,5,124,15],[124,16,124,22],[124,23,124,29],[127,5,127,15],[127,16,127,22],[119,5,119,15],[119,16,119,22],[119,23,119,29],[120,5,120,15],[120,16,120,22],[120,23,120,29],[117,5,117,15],[117,16,117,22],[121,5,121,15],[121,16,121,22],[121,23,121,29],[134,5,134,29],[125,5,125,15],[125,16,125,22],[125,23,125,29],[129,5,129,15],[129,16,129,22],[129,23,129,29],[126,5,126,15],[126,16,126,22],[126,23,126,29],[132,16,132,18],[132,5,132,14],[130,5,130,15],[130,16,130,22],[130,23,130,29],[114,5,114,15],[114,16,114,22],[114,23,114,29],[117,23,117,29],[118,5,118,15],[118,16,118,22],[118,23,118,29],[115,5,115,15],[115,16,115,22],[115,23,115,29],[116,5,116,15],[116,16,116,22],[116,23,116,29],[111,5,111,15],[111,16,111,22],[111,23,111,29],[112,5,112,15],[112,16,112,22],[112,23,112,29],[113,5,113,15],[113,16,113,22],[113,23,113,29],[108,5,108,15],[108,16,108,22],[108,23,108,29],[109,5,109,15],[109,16,109,22],[109,23,109,29],[110,5,110,15],[110,16,110,22],[110,23,110,29],[105,5,105,15],[105,16,105,22],[105,23,105,29],[106,5,106,15],[106,16,106,22],[106,23,106,29],[107,5,107,15],[107,16,107,22],[107,23,107,29],[102,5,102,15],[102,16,102,22],[102,23,102,29],[103,5,103,15],[103,16,103,22],[103,23,103,29],[104,5,104,15],[104,16,104,22],[104,23,104,29],[99,5,99,15],[99,16,99,22],[99,23,99,29],[100,5,100,15],[100,16,100,22],[100,23,100,29],[101,5,101,15],[101,16,101,22],[101,23,101,29],[96,5,96,15],[96,16,96,22],[96,23,96,29],[97,5,97,15],[97,16,97,22],[97,23,97,29],[98,5,98,15],[98,16,98,22],[98,23,98,29],[93,5,93,15],[93,16,93,22],[93,23,93,29],[94,5,94,15],[94,16,94,22],[94,23,94,29],[95,5,95,15],[95,16,95,22],[95,23,95,29],[90,5,90,15],[90,16,90,22],[90,23,90,29],[91,5,91,15],[91,16,91,22],[91,23,91,29],[92,5,92,15],[92,16,92,22],[92,23,92,29],[87,5,87,15],[87,16,87,22],[87,23,87,29],[88,5,88,15],[88,16,88,22],[88,23,88,29],[89,5,89,15],[89,16,89,22],[89,23,89,29],[84,5,84,15],[84,16,84,22],[84,23,84,29],[85,5,85,15],[85,16,85,22],[85,23,85,29],[86,5,86,15],[86,16,86,22],[86,23,86,29],[82,5,82,15],[82,16,82,22],[82,23,82,29],[62,5,62,15],[62,16,62,22],[74,5,74,29],[75,5,75,12],[83,5,83,15],[83,16,83,22],[83,23,83,29],[67,5,67,29],[65,5,65,14],[65,16,65,18],[77,5,77,29],[78,5,78,10],[58,23,58,29],[58,5,58,15],[58,16,58,22],[59,5,59,15],[59,16,59,22],[59,23,59,29],[62,23,62,29],[60,5,60,15],[60,16,60,22],[60,23,60,29],[61,5,61,15],[61,16,61,22],[61,23,61,29],[55,5,55,15],[55,16,55,22],[55,23,55,29],[56,5,56,15],[56,16,56,22],[56,23,56,29],[57,5,57,15],[57,16,57,22],[57,23,57,29],[10,5,10,10],[7,5,7,12],[9,5,9,29],[54,5,54,15],[54,16,54,22],[54,23,54,29],[12,5,12,29],[6,5,6,29],[18,5,18,29],[20,5,20,29],[53,5,53,15],[53,16,53,22],[53,23,53,29]]}
[]
[]
[]
[]
[]
[]
[null,null,null,null,null,{"$f":"IF(B_PartnerVollmachtgeber=\"\",\"\",B_PartnerVollmachtgeber)","v":""}]
[null,null,null,null,null,"Vollmachtgeber/in"]
[]
[null,null,null,null,null,{"$f":"IF(B_PartnerIdentNummer=\"\",\"\",B_PartnerIdentNummer)","v":""}]
[null,null,null,null,null,"IdNr."]
[]
[null,null,null,null,null,{"$f":"IF(B_PartnerBevollmaechtigter=\"\",\"\",B_PartnerBevollmaechtigter)","v":""}]
[null,null,null,null,null,"Bevollmächtigte/r (Name/Kanzlei)"]
[]
[]
[]
[]
[null,null,null,null,null,"Beiblatt"]
[]
[null,null,null,null,null,"zur Vollmacht zur Vertretung in Steuersachen"]
[]
[]
[]
[null,null,null,null,null,"Dem/Der Vollmachtgeber/in ist bekannt, dass im Verhältnis zur Finanzverwaltung die von ihm/ihr "]
[null,null,null,null,null,"dem/der Bevollmächtigten nach amtlich vorgeschriebenem Vollmachtsmuster erteilte Vollmacht nur in "]
[null,null,null,null,null,"dem Umfang Wirkung entfaltet, wie sie von dem/der Bevollmächtigten gegenüber der "]
[null,null,null,null,null,"Finanzverwaltung angezeigt wird."]
[]
[null,null,null,null,null,"Die nach amtlich vorgeschriebenem Vollmachtsmuster erteilte Vollmacht wird gegenüber der "]
[null,null,null,null,null,"Finanzverwaltung für die nachfolgend aufgeführten Steuernummern des/der o. g. Vollmachtgebers/in "]
[null,null,null,null,null,"von dem/der o.g. Bevollmächtigten angezeigt und entfaltet nur insoweit im Verhältnis zur "]
[null,null,null,null,null,"Finanzverwaltung Wirkung. Sofern mit der nach amtlich vorgeschriebenem Vollmachtsmuster erteilten "]
[null,null,null,null,null,"Vollmacht bisher erteilte Vollmachten widerrufen werden sollen, gilt der Widerruf nur für die "]
[null,null,null,null,null,"nachfolgend aufgeführten Steuernummern."]
[]
[null,null,null,null,null,"Sollte der/die o. g. Vollmachtgeber/in steuerlich unter weiteren, jedoch hier nicht aufgeführten "]
[null,null,null,null,null,"Steuernummern geführt werden, entfaltet die nach amtlich vorgeschriebenem Vollmachtsmuster "]
[null,null,null,null,null,"erteilte Vollmacht für den/die o. g. Bevollmächtigten im Verhältnis zur Finanzverwaltung insoweit keine "]
[null,null,null,null,null,"Wirkung."]
[]
[null,null,null,null,null,"Das Beiblatt ist bei erstmaliger Vollmachterteilung von dem/der Vollmachtgeber/in zu unterschreiben."]
[]
[null,null,null,null,null,"Bei späteren Änderungen und/oder Ergänzungen, die sich allein auf den Steuernummernumfang, aber "]
[null,null,null,null,null,"nicht auf den Inhalt der nach amtlich vorgeschriebenem Vollmachtsmuster erteilten Vollmacht "]
[null,null,null,null,null,"auswirken, muss kein neues Beiblatt unterzeichnet werden, wenn der/die o. g. Bevollmächtigte die mit "]
[null,null,null,null,null,"dem/der o. g. Vollmachtgeber/in - ggf. konkludent - getroffene Vereinbarung zum "]
[null,null,null,null,null,"Steuernummernumfang in geeigneter Weise dokumentiert. Die Änderung oder Ergänzung ist der "]
[null,null,null,null,null,"Finanzverwaltung in einem entsprechenden Datensatz zu übermitteln."]
[]
[]
[null,null,null,null,null,"Finanzamt",null,null,null,null,null,null,null,null,null,null,"Steuernummer",null,null,null,null,null,null,"Land"]
[]
[]
[]
[]
[]
[]
[]
[]
[]
[]
[]
[]
[]
[null,null,null,null,null,{"$f":"IF(B_PartnerOrt=\"\",\"\",B_PartnerOrt)","v":""},null,null,null,null,null,null,null,null,null,",",{"$f":"IF(B_PartnerDatum=\"\",\"\",TEXT(B_PartnerDatum,\"TT.MM.JJJJ\"))","v":""}]
[null,null,null,null,null,"Ort,",null,null,null,null,null,null,null,null,null,null,"Datum",null,null,null,null,null,"Unterschrift Vollmachtgeber/in"]
[]
[]
[]
[]
[]
[]
[]
[null,null,null,null,null,{"$f":"IF(B_PartnerVollmachtgeber=\"\",\"\",B_PartnerVollmachtgeber)","v":""}]
[null,null,null,null,null,"Vollmachtgeber/in"]
[]
[null,null,null,null,null,{"$f":"IF(B_PartnerIdentNummer=\"\",\"\",B_PartnerIdentNummer)","v":""}]
[null,null,null,null,null,"IdNr."]
[]
[null,null,null,null,null,"Finanzamt",null,null,null,null,null,null,null,null,null,null,"Steuernummer",null,null,null,null,null,null,"Land"]
[]
[]
[]
[]
[]
[]
[]
[]
[]
[]
[]
[]
[]
[]
[]
[]
[]
[]
[]
[]
[]
[]
[]
[]
[]
[]
[]
[]
[]
[]
[]
[]
[]
[]
[]
[]
[]
[]
[]
[]
[]
[]
[]
[]
[]
[]
[]
[]
[]
[]
[]
[null,null,null,null,null,{"$f":"IF(B_Ort=\"\",\"\",B_Ort)","v":""},null,null,null,null,null,null,null,null,null,","]
[null,null,null,null,null,"Ort,",null,null,null,null,null,null,null,null,null,null,"Datum",null,null,null,null,null,"Unterschrift Vollmachtgeber/in"]
[null,null,null,null,null,"Seite 2 von 2"]

{"sheet":"Attribute","index":4,"n_rows":6,"n_cols":3,"rows_kept":6,"cut":false,"hidden":true,"merged":[]}
["KAW-Variable","Wert","Bezeichnung"]
["KAW020001",{"$f":"IF(Mandantennummer=\"\",\"\",Mandantennummer)","v":""},"Nummer"]
["KAW010101",{"$f":"IF(FirstRun=\"\",\"\",YEAR(FirstRun))","v":2022},"Jahr"]
["KAW010102",{"$f":"IF(FirstRun=\"\",\"\",MONTH(FirstRun))","v":2},"Monat"]
["KAW010103",{"$f":"ToolThema","v":"Vollmacht zur Vertretung in Steuersachen"},"Beschreibung"]
["KAW010105","Vollmacht, Vollmachtsdatenbank","Stichworte"]

{"sheet":"Kommentare","index":5,"n_rows":15,"n_cols":4,"rows_kept":15,"cut":false,"hidden":true,"merged":[]}
["Nummer","Text","Höhe","Breite"]
[1,"Bei Ehegatten bzw. Lebenspartnern sind, auch im Fall der Zusammenveranlagung, zwei eigenständige Vollmachten zu erteilen.",202.5,42.75]
[2,"Bei Körperschaften, Vermögensmassen und Personengesellschaften/-gemeinschaften sind bis zur Vergabe der W-IdNr. die derzeitig gültigen Steuernummern im Beiblatt zur Vollmacht und in dem an die Finanzverwaltung zu übermittelnden Datensatz anzugeben (vgl. Fußnote 3). In der Vollmacht selbst kann in diesem Fall auf die Angabe einer Steuernummer an dieser Stelle verzichtet werden (Ausnahme: die Vollmacht soll der Finanzbehörde in Papier vorgelegt werden).",360.75,71.25]
[3,"Die Steuernummern des/der Vollmachtgebers/in sind im Beiblatt zur Vollmacht und in der Vollmachtsdatenbank zu erfassen. In der Vollmacht selbst kann auf die Angabe einer Steuernummer an dieser Stelle verzichtet werden (Ausnahme: die Vollmacht soll der Finanzbehörde in Papier vorgelegt werden).",245.25,85.5]
[4,"Diese Vollmacht regelt das Außenverhältnis zur Finanzbehörde und gilt im Auftragsverhältnis zwischen Bevollmächtigtem und Mandant, soweit nichts anderes bestimmt ist.",190.5,55.5]
[5,"Person oder Gesellschaft, die nach § 3 StBerG zur Hilfeleistung in Steuersachen befugt ist.",214.5,41.25]
[6,"Die Vollmacht umfasst insbesondere die Berechtigung \n- zur Abgabe und Entgegennahme von Erklärungen jeder Art,\n- zur Stellung von Anträgen in Haupt-, Neben- und Folgeverfahren,\n- zur Einlegung und Rücknahme außergerichtlicher Rechtsbehelfe jeder Art sowie zum Rechtsbehelfsverzicht,\n- zu außergerichtlichen Verhandlungen jeder Art.\nDie Berechtigung zur Entgegennahme von Steuerbescheiden und sonstigen Verwaltungsakten im Steuerschuldverhältnis ist in der Regel nur gegeben, soweit der/die Vollmachtgeber/in hierzu ausdrücklich bevollmächtigt hat (Hinweis auf § 122 Abs. 1 Satz 4 AO; vgl. Zeilen 16 bis 20).",415.5,108.75]
[7,"Sachliche und/oder zeitliche Beschränkungen der Bevollmächtigung in Zeilen 15 und 21 bis 28 gelten auch bei der Bekanntgabevollmacht.",206.25,51.75]
[8,"Gilt die Vertretungsvollmacht für die von der Gesellschaft/Gemeinschaft geschuldeten (Betriebs-)Steuern und wird das Feststellungsverfahren nicht in Zeile 15 abgewählt, wirkt die Vollmacht bei Ankreuzen der Zeile 17 zugleich als Bekanntgabevollmacht für die von der Gesellschaft/Gemeinschaft geschuldeten (Betriebs-) Steuern nach § 122 AO und als Empfangsvollmacht für das Feststellungsverfahren nach § 183 AO.",316.5,84.75]
[9,"Soweit für einen künftigen Veranlagungszeitraum/-stichtag von der Verlängerung der Abgabefristen nach § 149 Abs. 3 AO profitiert werden soll, ist dies nur möglich, wenn erneut ein zur Hilfeleistung in Steuersachen Befugter (§§ 3 und 4 StBerG) mit Erstellung der Steuererklärung beauftragt (und ggf. bevollmächtigt) wird.",233.25,84.75]
[10,"Ein Widerruf der erteilten Vollmacht wird der Finanzbehörde gegenüber erst wirksam, wenn er ihr zugeht (vgl. § 80 Abs. 1 Satz 3 AO).",204,63.75]
[11,"Dies gilt auch für Vollmachten, die nicht nach amtlich bestimmtem Formular nach amtlich vorgeschriebenem Datensatz über die amtlich bestimmten Schnittstellen elektronisch übermittelt worden sind. Bislang erteilte Bekanntgabevollmachten nach\n§ 122 AO und Empfangsvollmachten nach § 183 AO erlöschen bei Anzeige einer neuen Bekanntgabe- oder Empfangsvollmacht in jedem Fall. Das Erlöschen von Datenabrufvollmachten, die nicht mittels einer Vollmachtsdatenbank der Kammer an das automationsgestützte Berechtigungsmanagement der Finanzverwaltung übermittelt worden sind, ist gesondert anzuzeigen.",331.5,106.5]
[12,"Wegen der technisch bedingten Einschränkungen in Bezug auf die Abrufbefugnis bei sachlicher und/oder zeitlicher Beschränkung der Bevollmächtigung Hinweis auf die Zeilen 35 bis 39.",273.75,48]
[13,"Ein Ausschluss der Bevollmächtigung in Zeile 15 für die Vertretung \n- im außergerichtlichen Rechtsbehelfsverfahren, \n- in Verfahren der Finanzgerichtsbarkeit und \n- im Straf- und Bußgeldverfahren in Steuersachen\nist für den Umfang der Datenabrufbefugnis des/der Bevollmächtigten unerheblich. Eintragungen in Zeile 35 bis 39 sind in diesem Fall nicht erforderlich.",273.75,106.5]
[14,"Bei Körperschaften, Vermögensmassen und Personengesellschaften/-gemeinschaften ist die Vollmacht vom gesetzlichen Vertreter zu unterschreiben. Bei Personengesellschaften und -gemeinschaften i. S. d. § 180 Abs. 1 Satz 1 Nr. 2 Buchst. a AO muss die Vollmacht demselben Bevollmächtigten gleichzeitig von den zur Vertretung der Feststellungsbeteiligten berechtigten Personen für das Feststellungsverfahren und von den zur Vertretung der Gesellschaft/Gemeinschaft berechtigten Personen für die Festsetzung der von der Gesellschaft/Gemeinschaft geschuldeten (Betriebs-)Steuern erteilt und unterschrieben werden, sofern nicht in Zeile 15 das Feststellungsverfahren abgewählt wurde.",319.5,115.5]

{"sheet":"Drucken","index":6,"n_rows":5,"n_cols":12,"rows_kept":5,"cut":false,"hidden":true,"merged":[]}
["Sheetname","Header","Caption","Checked","Druck","Linebreak","WithBlankSheet","BlankSheetName","Seiten","Drucker","BeraterMandant","Duplex"]
["Vollmacht","Header","Vollmacht","true",true,null,null,null,0,"SecurePrint auf bk-printserver (umgeleitet 2)#:11 auf TPVM:",true,true]
["Beiblatt","Header","Beiblatt","true",true]
["Vollmacht Partner","Header","Vollmacht (Partner)",{"$f":"IF(OR(Familienstand=\"VH\",Familienstand=\"PE\"),\"true\",\"false\")","v":"false"},false]
["Beiblatt Partner","Header","Beiblatt (Partner)",{"$f":"IF(OR(Familienstand=\"VH\",Familienstand=\"PE\"),\"true\",\"false\")","v":"false"},false]

{"sheet":"Kanzleidaten","index":7,"n_rows":11,"n_cols":3,"rows_kept":11,"cut":false,"hidden":true,"merged":[]}
["Art","Schlüssel","Wert"]
["KANZLEI","KD_Bezeichnung",""]
["KANZLEI","KD_Bezeichnung1",""]
["KANZLEI","KD_Anschrift",""]
["KANZLEI","KD_Plz",""]
["KANZLEI","KD_Ort",""]
["KANZLEI","KD_Telefon"]
["KANZLEI","KD_Fax"]
["KANZLEI","KD_Email"]
["COPY","B_Bevollmaechtigter",{"$f":"IF(KD_Bezeichnung=\"\",\"\",KD_Bezeichnung & IF(KD_Bezeichnung1=\"\",\"\",\", \" & KD_Bezeichnung1))","v":""}]
["COPY","B_PartnerBevollmaechtigter",{"$f":"C10","v":""}]

{"sheet":"Eintragung","index":8,"n_rows":31,"n_cols":6,"rows_kept":31,"cut":false,"hidden":true,"merged":[]}
["Art","Person","Betrieb","VF","Quelle / Ziel","Wert"]
["ZMSD","$Mandant.Name","$Mandant.Name",null,"MandantName",""]
["ZMSD","$Mandant.Nummer","$Mandant.Nummer",null,"Mandantennummer",""]
["ZMSD","$Steuerpflichtiger.TitelAkademischerGrad","NA",null,"Titel",""]
["ZMSD","$Steuerpflichtiger.Vorname","NA",null,"Vorname",""]
["ZMSD","$Steuerpflichtiger.Nachname","$Betrieb.Unternehmensbezeichnung",null,"Name",""]
["ZMSD","$Steuerpflichtiger.PersoenlicheDaten.Geburt.Datum","NA",null,"Geburtsdatum",""]
["ZMSD","$Steuerpflichtiger.PersoenlicheDaten.Familienstand","NA",null,"Familienstand",""]
["ZMSD","$Steuerpflichtiger.PersoenlicheDaten.Identifikationsnummer","NA",null,"Identifikation",""]
["ZMSD","$Steuerpflichtiger.Finanzamt[].Steuernummer","$Betrieb.Finanzamt[].Steuernummer",59,"Steuernummer",""]
["ZMSD","$Steuerpflichtiger.Finanzamt[].Info.Bezeichnung1","$Betrieb.Finanzamt[].Info.Bezeichnung1",59,"Finanzamt",""]
["ZMSD","$Steuerpflichtiger.Finanzamt[].Info.Details.Zusatzinfos.Bundesland","$Betrieb.Finanzamt[].Info.Details.Zusatzinfos.Bundesland",59,"FaBundesland"]
["ZMSD","$Steuerpflichtiger.Hauptfinanzamt.Steuernummer","$Betrieb.Hauptfinanzamt.Steuernummer",null,"HauptSteuernummer"]
["ZMSD","$Steuerpflichtiger.Hauptfinanzamt.Info.Bezeichnung1","$Betrieb.Hauptfinanzamt.Info.Bezeichnung1",null,"HauptFinanzamt"]
["ZMSD","$Ehegatte.TitelAkademischerGrad","NA",null,"PartnerTitel",""]
["ZMSD","$Ehegatte.Vorname","NA",null,"PartnerVorname",""]
["ZMSD","$Ehegatte.Nachname","NA",null,"PartnerNachname",""]
["ZMSD","$Ehegatte.PersoenlicheDaten.Geburt.Datum","NA",null,"PartnerGeburtsdatum",""]
["ZMSD","$Ehegatte.PersoenlicheDaten.Familienstand","NA",null,"PartnerFamilienstand",""]
["ZMSD","$Ehegatte.PersoenlicheDaten.Identifikationsnummer","NA",null,"PartnerIdentifikation",""]
["ZMSD","$Ehegatte.Finanzamt[].Steuernummer","NA",59,"PartnerSteuernummer",""]
["ZMSD","$Ehegatte.Finanzamt[].Info.Bezeichnung1","NA",59,"PartnerFinanzamt",""]
["ZMSD","$Ehegatte.Finanzamt[].Info.Details.Zusatzinfos.Bundesland","NA",59,"PartnerFaBundesland",""]
["ZMSD","$Ehegatte.Hauptfinanzamt.Steuernummer","NA",null,"PartnerHauptSteuernummer"]
["ZMSD","$Ehegatte.Hauptfinanzamt.Info.Bezeichnung1","NA",null,"PartnerHauptFinanzamt"]
["COPY",null,null,null,"B_Vollmachtgeber",{"$f":"IF(Titel=\"\",\"\",Titel) & IF(Vorname=\"\",\"\",IF(Titel=\"\",\"\", \" \") & Vorname & \" \") & IF(Name=\"\",\"\",Name)","v":""}]
["COPY",null,null,null,"B_PartnerVollmachtgeber",{"$f":"IF(PartnerTitel=\"\",\"\",PartnerTitel) & IF(PartnerVorname=\"\",\"\",IF(PartnerTitel=\"\",\"\", \" \") & PartnerVorname & \" \") & IF(PartnerNachname=\"\",\"\",PartnerNachname)","v":""}]
["COPY",null,null,null,"B_IdentNummer",{"$f":"IF(Identifikation=\"\",IF(HauptSteuernummer=\"\",\"\",HauptSteuernummer),Identifikation)","v":""}]
["COPY",null,null,null,"B_PartnerIdentNummer",{"$f":"IF(PartnerVollmachtgeber=\"\",\"\",IF(PartnerIdentifikation=\"\",IF(PartnerHauptSteuernummer=\"\",IF(HauptSteuernummer=\"\",\"\",HauptSteuernummer),PartnerHauptSteuernummer),PartnerIdentifikation))","v":""}]
["COPY",null,null,null,"B_Geburtsdatum",{"$f":"Datumkonvert(Geburtsdatum)","v":""}]
["COPY",null,null,null,"B_PartnerGeburtsdatum",{"$f":"Datumkonvert(PartnerGeburtsdatum)","v":""}]

{"sheet":"Stammdaten","index":9,"n_rows":10,"n_cols":2,"rows_kept":10,"cut":false,"hidden":true,"merged":[]}
["Stammdaten"]
["ToolName","Neuanlage eines Mandats"]
["ToolVersion","4.9"]
["ToolDatum","27.09.2021"]
["ToolInfo",{"$f":"ToolName & \" \" & ToolVersion & \" (\" & ToolDatum & \")\"","v":"Neuanlage eines Mandats 4.9 (27.09.2021)"}]
["ToolThema","Vollmacht zur Vertretung in Steuersachen"]
["Eingabekontrolle",true]
["FirstRun","03.02.2022"]
["ToolId","VollmachtSteuer"]
["ToolKompId","T0000023"]